[Event "Turkey IS Bank Super League 2017"]
[Site "Darica-Kocaeli"]
[Date "2017.07.31"]
[Round "7"]
[White "Ayazmali, Gizem"]
[Black "Avramidou, Anastasia"]
[Result "0-1"]
[ECO "A05"]
[WhiteElo "1849"]
[BlackElo "2247"]
[Annotator "NA"]
[PlyCount "94"]
[EventType "team-tourn"]
[EventCountry "TUR"]
[SourceTitle "playchess.com"]
[Source "ChessBase"]
[SourceQuality "1"]
[TimeControl "40/5400+30:1800+30"]

1. Nf3 {[%emt 0:00:30]} Nf6 {[%emt 0:01:00]} 2. g3 {[%emt 0:00:30]} g6 {[%emt 0:00:30]} 3. Bg2 {[%emt 0:00:30]} Bg7 {[%emt 0:00:30]} 4. d4 {[%emt 0:00:30]} d5 {[%emt 0:00:30]} 5. O-O {[%emt 0:00:30]} O-O {[%emt 0:00:30]} 6. b3 {[%emt 0:00:30]} c5 {[%emt 0:01:30]} 7. e3 {[%emt 0:00:30]} Nc6 {[%emt 0:01:30]} 8. Bb2 {[%emt 0:01:30]} Ne4 {[%emt 0:11:30]} 9. Nbd2 {[%emt 0:12:30]} Bg4 {[%emt 0:04:30] A05: Réti Opening: 1 Nf3 Nf6} (9... Qa5 10. Nxe4 dxe4 11. Ne5 Nxe5 12. dxe5 Rd8 13. Qe1 Qc7 14. Bxe4 Bh3 15. Bg2 Bxg2 16. Kxg2 Bxe5 17. Bxe5 Qxe5 {½-½ (47) Moussard,J (2576)-Fridman,D (2594) chess.com INT 2017}) 10. h3 {[%emt 0:02:30] LiveBook: 13 Games} Bf5 {[%emt 0:00:30]} 11. Ne5 {[%emt 0:07:30]} Qc8 $146 {[%emt 0:07:30]} ({Find the theoretical novelty and annotate with similar games:} 11... Nxe5 12. dxe5 Qc7 13. g4 Nxd2 14. Qxd2 Be6 15. f4 Rad8 16. f5 Bc8 17. Qc3 gxf5 18. gxf5 {1-0 (41) Schmittdiel,E (2485)-Dobos,J (2385) Budapest 1991}) 12. g4 {[%emt 0:15:30]} Nxd2 {[%emt 0:00:30]} 13. Qxd2 {[%emt 0:00:30]} Be6 {[%emt 0:00:30]} 14. f4 {[%emt 0:04:30]} cxd4 {[%emt 0:04:30]} 15. exd4 {[%emt 0:00:30]} Bh6 {[%emt 0:08:30]} 16. Qf2 {[%emt 0:03:30]} f6 {[%emt 0:03:30]} 17. Nd3 {[%emt 0:04:30]} Bf7 {[%emt 0:00:30]} 18. Qh4 {[%emt 0:05:30]} Bg7 {[%emt 0:00:30]} 19. f5 {[%emt 0:01:30]} Qc7 {[%emt 0:08:30]} 20. Rae1 {[%emt 0:04:30]} a5 {[%emt 0:04:30]} 21. a3 {[%emt 0:07:30]} Na7 {[%emt 0:07:30]} ({Better is} 21... b6 $14) 22. Qf2 {[%emt 0:05:30]} Rac8 {[%emt 0:02:30]} 23. Nf4 {[%emt 0:00:47]} Rfd8 {[%emt 0:04:30]} 24. Re6 {[%emt 0:01:44]} Qxc2 {[%emt 0:13:18]} 25. Nxd5 {[%emt 0:11:35]} Qxf2+ {[%emt 0:00:40]} 26. Rxf2 {[%emt 0:00:30]} Bxe6 {[%emt 0:00:00]} 27. fxe6 {[%emt 0:00:41]} Nc6 {[%emt 0:01:17]} 28. Nb6 {[%emt 0:01:06]} Rb8 {[%emt 0:04:09]} 29. d5 {[%emt 0:01:04]} Bh6 {[%emt 0:03:04]} 30. dxc6 {[%emt 0:04:55]} bxc6 {[%emt 0:01:59]} 31. Nc4 {[%emt 0:01:23]} Rxb3 {[%emt 0:00:36]} 32. Nxa5 {[%emt 0:00:40]} Rb5 {[%emt 0:02:07]} 33. Nxc6 {[%emt 0:00:30]} Be3 {[%emt 0:00:33]} 34. Nxd8 {[%emt 0:00:26]} Rxb2 {[%emt 0:00:13]} 35. Be4 {[%emt 0:00:33]} Rxf2 {[%emt 0:01:15]} 36. Kh1 {[%emt 0:00:02]} Ra2 {[%emt 0:00:31]} 37. Nc6 {[%emt 0:00:26]} Bc5 {[%emt 0:00:07]} 38. Bd5 {[%emt 0:00:52]} Rxa3 {[%emt 0:00:30]} 39. Kg2 {[%emt 0:00:00]} Kg7 {[%emt 0:00:00]} 40. h4 {[%emt 0:00:00]} Bd6 {[%emt 0:01:11]} 41. Bf3 {[%emt 0:03:16]} Ra2+ {[%emt 0:00:30]} 42. Kf1 {[%emt 0:00:00]} Bc5 {[%emt 0:01:30]} 43. Ke1 {[%emt 0:00:00]} Ra3 {[%emt 0:00:30]} 44. Bd5 {[%emt 0:02:30]} Rd3 {[%emt 0:00:30]} 45. Bc4 {[%emt 0:01:30]} Rd6 {[%emt 0:00:30]} 46. Nb8 {[%emt 0:01:30]} Rd4 {[%emt 0:00:00]} 47. Be2 {[%emt 0:00:30]} Re4 $19 {[%emt 0:00:00]} 0-1

[Event "Turkey IS Bank Super League 2017"]
[Site "Darica-Kocaeli"]
[Date "2017.07.31"]
[Round "7"]
[White "Kargaci, Humeyra"]
[Black "Yurdakul, Didem Nuray"]
[Result "1-0"]
[ECO "D11"]
[WhiteElo "1737"]
[BlackElo "1697"]
[Annotator "NA"]
[PlyCount "175"]
[EventType "team-tourn"]
[EventCountry "TUR"]
[SourceTitle "playchess.com"]
[Source "ChessBase"]
[SourceQuality "1"]
[TimeControl "40/5400+30:1800+30"]

1. d4 {[%emt 0:00:30]} d5 {[%emt 0:01:00]} 2. Nf3 {[%emt 0:00:30]} Nf6 {[%emt 0:00:30]} 3. e3 {[%emt 0:00:30]} Bg4 {[%emt 0:00:30]} 4. c4 {[%emt 0:00:30]} c6 {[%emt 0:00:30]} 5. Qb3 {[%emt 0:00:00]} Qb6 {[%emt 0:04:30]} 6. Ne5 {[%emt 0:00:00]} Bf5 {[%emt 0:07:30]} 7. cxd5 {[%emt 0:01:30]} Qxb3 {[%emt 0:01:30]} 8. axb3 {[%emt 0:00:30]} cxd5 {[%emt 0:00:00]} 9. Nc3 {[%emt 0:00:30]} Bd7 {[%emt 0:21:00]} 10. Bd2 {[%emt 0:16:30]} e6 {[%emt 0:07:30]} 11. Bd3 {[%emt 0:06:30]} Be7 {[%emt 0:03:30]} 12. Nb5 {[%emt 0:02:30]} Bxb5 {[%emt 0:05:30]} 13. Bxb5+ {[%emt 0:00:30]} Nbd7 {[%emt 0:00:00]} 14. Ke2 {[%emt 0:01:30]} Bd6 {[%emt 0:00:00]} 15. Rhc1 {[%emt 0:00:30]} Ke7 {[%emt 0:00:30]} 16. f4 {[%emt 0:02:30]} a6 {[%emt 0:01:30]} 17. Bd3 {[%emt 0:00:00]} Rhc8 {[%emt 0:03:30]} 18. Kf3 {[%emt 0:02:00]} Nf8 {[%emt 0:04:30]} 19. Rc3 {[%emt 0:01:30]} Ne8 {[%emt 0:01:30]} 20. Ke2 {[%emt 0:00:30]} f6 {[%emt 0:00:30]} 21. Nf3 {[%emt 0:00:00]} Rc7 {[%emt 0:01:30]} 22. Rac1 {[%emt 0:01:00]} Rac8 {[%emt 0:00:30]} 23. b4 {[%emt 0:01:30]} b5 {[%emt 0:00:30]} 24. Ra1 {[%emt 0:01:30]} Rxc3 {[%emt 0:01:30]} 25. Bxc3 {[%emt 0:00:00]} Rc6 {[%emt 0:01:30]} 26. Nd2 {[%emt 0:00:00]} g6 {[%emt 0:03:30]} 27. Nb3 {[%emt 0:00:30]} Nd7 {[%emt 0:05:30]} 28. Nc5 {[%emt 0:00:30]} Nc7 {[%emt 0:00:30]} 29. h4 {[%emt 0:02:30]} f5 {[%emt 0:01:30]} 30. h5 {[%emt 0:02:30]} gxh5 {[%emt 0:03:30]} 31. Rh1 {[%emt 0:01:30]} Nf6 {[%emt 0:00:00]} 32. Be1 {[%emt 0:00:30]} Nce8 {[%emt 0:01:54]} 33. Bh4 {[%emt 0:00:30]} Kf7 {[%emt 0:00:20]} 34. Ra1 {[%emt 0:03:30]} Bxc5 {[%emt 0:04:18]} 35. bxc5 {[%emt 0:00:30]} Nc7 {[%emt 0:01:38]} 36. Be1 {[%emt 0:02:30]} Nd7 {[%emt 0:02:49]} 37. Ba5 {[%emt 0:02:30]} Nb8 {[%emt 0:00:07]} 38. Rh1 {[%emt 0:10:30]} Kg6 {[%emt 0:00:21]} 39. Kd2 {[%emt 0:11:30]} Ne8 {[%emt 0:00:33]} 40. Bd8 {[%emt 0:00:00]} Rc8 {[%emt 0:02:00]} 41. Bg5 {[%emt 0:01:00]} Nc6 {[%emt 0:01:30]} 42. Be2 {[%emt 0:03:30]} Ng7 {[%emt 0:01:30]} 43. Ra1 {[%emt 0:01:30]} Nb8 {[%emt 0:00:30]} 44. Ke1 {[%emt 0:03:30]} Ne8 {[%emt 0:07:30]} 45. Kf2 {[%emt 0:02:30]} h6 {[%emt 0:03:30]} 46. Bh4 {[%emt 0:06:30]} Nc7 {[%emt 0:02:30]} 47. Be7 {[%emt 0:02:30]} Nc6 {[%emt 0:04:30]} 48. Bd6 {[%emt 0:00:00]} Nb4 {[%emt 0:02:30]} 49. Rh1 {[%emt 0:01:00]} Kg7 {[%emt 0:04:21]} 50. Rxh5 {[%emt 0:00:30]} Ne8 {[%emt 0:01:34]} 51. Be5+ {[%emt 0:02:30]} Kg6 {[%emt 0:00:15]} 52. Rh3 {[%emt 0:02:30]} Kh7 {[%emt 0:02:03]} 53. Ke1 {[%emt 0:02:30]} Nc6 {[%emt 0:03:33]} 54. g4 {[%emt 0:01:30]} Nxe5 {[%emt 0:01:09]} 55. fxe5 {[%emt 0:00:00]} fxg4 {[%emt 0:01:13]} 56. Bxg4 {[%emt 0:00:00]} Ng7 {[%emt 0:00:22]} 57. Rf3 {[%emt 0:00:30]} h5 {[%emt 0:02:20]} 58. Bh3 {[%emt 0:00:00]} Kg8 {[%emt 0:00:28]} 59. Rf6 {[%emt 0:00:00]} Re8 {[%emt 0:01:12]} 60. Kd2 {[%emt 0:01:30]} a5 {[%emt 0:02:12]} 61. Kd3 {[%emt 0:04:30]} b4 {[%emt 0:02:52]} 62. e4 {[%emt 0:02:30]} Rf8 {[%emt 0:01:16]} 63. Rxf8+ {[%emt 0:04:30]} Kxf8 {[%emt 0:00:30]} 64. exd5 {[%emt 0:00:30]} exd5 {[%emt 0:00:08]} 65. Bg2 {[%emt 0:00:00]} a4 {[%emt 0:01:26]} 66. Bxd5 {[%emt 0:00:00]} a3 {[%emt 0:00:48]} 67. bxa3 {[%emt 0:00:30]} bxa3 {[%emt 0:00:00]} 68. Kc3 {[%emt 0:00:30]} Ke7 {[%emt 0:00:50]} 69. Ba2 {[%emt 0:05:30]} h4 {[%emt 0:01:13]} 70. d5 {[%emt 0:01:40]} h3 {[%emt 0:01:14]} 71. d6+ {[%emt 0:00:05]} Kd7 {[%emt 0:00:24]} 72. Bd5 {[%emt 0:00:08]} h2 {[%emt 0:00:41]} 73. c6+ {[%emt 0:00:58]} Kd8 {[%emt 0:00:42]} 74. c7+ {[%emt 0:03:23]} Kc8 {[%emt 0:00:14]} 75. Kb3 {[%emt 0:00:57]} a2 {[%emt 0:01:05]} 76. Kxa2 {[%emt 0:00:00]} h1=N {[%emt 0:00:00]} 77. Bxh1 {[%emt 0:00:00]} Ne6 {[%emt 0:00:00]} 78. Bf3 {[%emt 0:00:00]} Nxc7 {[%emt 0:00:33]} 79. dxc7 {[%emt 0:00:00]} Kxc7 {[%emt 0:00:06]} 80. Kb3 {[%emt 0:00:01]} Kd7 {[%emt 0:00:11]} 81. Kc4 {[%emt 0:00:15]} Ke6 {[%emt 0:00:37]} 82. Kd4 {[%emt 0:00:01]} Ke7 {[%emt 0:00:27]} 83. Kd5 {[%emt 0:00:08]} Kd7 {[%emt 0:00:00]} 84. e6+ {[%emt 0:00:45]} Ke7 {[%emt 0:00:20]} 85. Ke5 {[%emt 0:00:00]} Ke8 {[%emt 0:00:21]} 86. Kd6 {[%emt 0:00:09]} Kd8 {[%emt 0:00:08]} 87. e7+ {[%emt 0:00:30]} Ke8 {[%emt 0:00:12]} 88. Bc6+ {[%emt 0:00:00]} 1-0

[Event "Turkey IS Bank Super League 2017"]
[Site "Darica-Kocaeli"]
[Date "2017.07.31"]
[Round "7"]
[White "Onur, Cigdem"]
[Black "Arda, Cagil Irmak"]
[Result "0-1"]
[ECO "B70"]
[WhiteElo "1699"]
[BlackElo "2080"]
[Annotator "NA"]
[PlyCount "130"]
[EventType "team-tourn"]
[EventCountry "TUR"]
[SourceTitle "playchess.com"]
[Source "ChessBase"]
[SourceQuality "1"]
[TimeControl "40/5400+30:1800+30"]

1. e4 {[%emt 0:00:30]} c5 {[%emt 0:02:00]} 2. Nf3 {[%emt 0:00:30]} Nc6 {[%emt 0:00:30]} 3. d4 {[%emt 0:00:30]} cxd4 {[%emt 0:00:30]} 4. Nxd4 {[%emt 0:00:30]} Nf6 {[%emt 0:00:30]} 5. Nc3 {[%emt 0:00:30]} d6 {[%emt 0:00:30]} 6. g3 {[%emt 0:00:30]} g6 {[%emt 0:00:30]} 7. Nde2 {[%emt 0:00:30]} Bg7 {[%emt 0:00:30]} 8. Bg2 {[%emt 0:00:30]} O-O {[%emt 0:00:00]} 9. O-O {[%emt 0:00:00]} Bd7 {[%emt 0:01:00]} 10. h3 {[%emt 0:09:00]} Rc8 {[%emt 0:01:30]} 11. Be3 {[%emt 0:01:30]} Ne5 {[%emt 0:07:30]} 12. Bd4 {[%emt 0:19:30]} (12. b3 $14) 12... Nc6 {[%emt 0:07:30]} 13. Be3 {[%emt 0:01:30]} Qa5 {[%emt 0:00:00]} 14. f4 {[%emt 0:11:30]} Rfd8 {[%emt 0:06:00]} 15. Nd5 $11 {[%emt 0:06:30]} Re8 {[%emt 0:14:30]} 16. c3 {[%emt 0:07:30]} Qd8 {[%emt 0:10:30]} 17. Qd3 {[%emt 0:05:30]} b6 {[%emt 0:08:30]} 18. Rad1 {[%emt 0:01:30]} Nxd5 {[%emt 0:08:30]} 19. exd5 {[%emt 0:01:30]} Na5 {[%emt 0:00:00]} 20. Nd4 {[%emt 0:06:30]} Qc7 {[%emt 0:01:00]} 21. g4 {[%emt 0:05:19]} Qc4 {[%emt 0:02:30]} 22. Qe4 {[%emt 0:15:26]} e6 {[%emt 0:07:30]} 23. Bf2 {[%emt 0:03:54]} e5 {[%emt 0:03:20]} 24. Nc2 {[%emt 0:00:39]} Qxe4 {[%emt 0:02:54]} 25. Bxe4 {[%emt 0:00:03]} exf4 {[%emt 0:03:01]} 26. Bd3 {[%emt 0:00:50]} Nc4 {[%emt 0:01:50]} 27. Bxc4 {[%emt 0:00:43]} Rxc4 {[%emt 0:00:04]} 28. Nd4 {[%emt 0:00:24]} h5 {[%emt 0:03:51]} 29. gxh5 {[%emt 0:00:34]} Bxh3 {[%emt 0:00:22]} 30. Rfe1 {[%emt 0:00:12]} Rxe1+ {[%emt 0:05:14]} 31. Rxe1 {[%emt 0:00:04]} g5 {[%emt 0:02:14]} 32. Re8+ {[%emt 0:01:06]} Bf8 {[%emt 0:00:51]} 33. h6 {[%emt 0:00:37]} Rc8 {[%emt 0:00:06]} 34. Rxc8 {[%emt 0:00:39]} Bxc8 {[%emt 0:00:03]} 35. Nb5 {[%emt 0:00:25]} a6 {[%emt 0:00:25]} 36. Na7 {[%emt 0:00:22]} Bb7 {[%emt 0:00:05]} 37. c4 {[%emt 0:00:22]} b5 {[%emt 0:01:14]} 38. cxb5 {[%emt 0:00:30]} axb5 {[%emt 0:00:00]} 39. Nxb5 {[%emt 0:00:32]} Bxd5 {[%emt 0:00:00]} 40. a4 {[%emt 0:00:00]} g4 {[%emt 0:02:26]} 41. a5 {[%emt 0:18:58]} g3 {[%emt 0:09:30]} 42. Bd4 {[%emt 0:10:03]} Be7 {[%emt 0:06:12]} 43. Nc7 {[%emt 0:03:11]} Be4 {[%emt 0:00:34]} 44. a6 {[%emt 0:00:22]} Bd8 {[%emt 0:01:17]} 45. Nb5 {[%emt 0:00:32]} f3 {[%emt 0:00:52]} 46. Nxd6 {[%emt 0:00:39]} Bd3 {[%emt 0:01:03]} 47. a7 {[%emt 0:00:48]} f2+ {[%emt 0:00:09]} 48. Bxf2 {[%emt 0:00:34]} gxf2+ {[%emt 0:00:30]} 49. Kxf2 {[%emt 0:00:30]} Bb6+ {[%emt 0:00:00]} 50. Ke1 {[%emt 0:00:09]} Bxa7 {[%emt 0:00:00]} 51. Kd2 {[%emt 0:00:00]} Bg6 {[%emt 0:00:48]} 52. Kc3 {[%emt 0:00:57]} f5 {[%emt 0:02:40]} 53. Nc8 {[%emt 0:00:28]} Be3 {[%emt 0:01:04]} 54. Ne7+ {[%emt 0:00:56]} Kh7 {[%emt 0:00:08]} 55. b4 {[%emt 0:00:00]} Kxh6 {[%emt 0:03:17]} 56. b5 {[%emt 0:00:31]} Kg5 {[%emt 0:06:38]} 57. Nd5 {[%emt 0:00:56]} Ba7 {[%emt 0:00:09]} 58. b6 {[%emt 0:00:04]} Bb8 {[%emt 0:00:05]} 59. Nc7 {[%emt 0:00:33]} f4 {[%emt 0:00:43]} 60. Kd2 {[%emt 0:00:35]} Bxc7 {[%emt 0:00:34]} 61. bxc7 {[%emt 0:00:30]} Bf5 {[%emt 0:00:00]} 62. Ke2 {[%emt 0:00:00]} Kg4 {[%emt 0:00:05]} 63. Kf2 {[%emt 0:00:00]} f3 {[%emt 0:00:07]} 64. Kg1 {[%emt 0:01:08]} Kg3 {[%emt 0:00:11]} 65. Kh1 {[%emt 0:00:10]} f2 {[%emt 0:00:07]} 0-1